bitfinex/quotes_BTCUSD_20240905
["timestamp","ask_amount","ask_price","bid_price","bid_amount"]
[1725539898152,0.001815,56623.0,56622.0,1.722166]
[1725539898380,0.001815,56623.0,56622.0,1.368947]
[1725539899307,0.000815,56623.0,56622.0,1.368947]
[1725539899538,0.000815,56623.0,56622.0,1.367947]
[1725539899757,0.001815,56623.0,56622.0,1.735166]
[1725539899958,0.000815,56638.0,56637.0,1.171715]
[1725539900402,0.000815,56638.0,56637.0,1.364815]
[1725539901537,0.000815,56638.0,56637.0,0.2789]
[1725539901794,0.000815,56638.0,56622.0,0.014]
[1725539901795,0.05373422,56638.0,56631.0,0.4567]
[1725539902012,0.177375,56638.0,56634.0,0.01]
[1725539902220,0.177375,56638.0,56631.0,0.4467]
[1725539902221,0.00979602,56637.0,56636.0,0.01]
[1725539903104,0.00979602,56637.0,56635.0,0.01]
[1725539903373,0.023,56636.0,56627.0,0.01]
[1725539903566,0.353188,56627.0,56621.0,0.01]
[1725539903811,0.033,56636.0,56618.0,0.2771]
[1725539903812,0.529857,56619.0,56618.0,0.2771]
[1725539904068,0.176619,56619.0,56618.0,0.2771]
[1725539904533,0.353238,56619.0,56618.0,0.2771]
[1725539904762,0.529857,56619.0,56618.0,0.2771]
[1725539905002,0.529844,56621.0,56618.0,0.2771]
[1725539905234,0.199616,56620.0,56618.0,0.2771]
[1725539905450,0.176619,56619.0,56618.0,0.2771]
[1725539905696,0.176619,56620.0,56619.0,0.01]
[1725539906204,0.353188,56628.0,56624.0,0.01]
[1725539906427,0.476189,56627.0,56624.0,0.01]
[1725539906656,0.1766,56625.0,56624.0,0.01]
[1725539906895,0.5298,56625.0,56624.0,0.01]
[1725539907369,0.53496955,56625.0,56624.0,0.01]
[1725539907832,0.00616955,56625.0,56624.0,0.53981]
[1725539908076,0.00916955,56625.0,56624.0,1.176617]
[1725539908323,0.00916955,56625.0,56624.0,1.371117]
[1725539908581,0.004,56625.0,56624.0,1.724324]
[1725539909260,0.003,56625.0,56624.0,1.724324]
[1725539909500,0.005,56625.0,56624.0,1.724324]
[1725539909763,0.002,56625.0,56624.0,1.724324]
[1725539909996,0.000815,56638.0,56636.0,0.4708]
[1725539910453,0.000815,56638.0,56637.0,0.539689]
[1725539911369,0.000815,56638.0,56637.0,0.186563]
[1725539911609,0.000815,56638.0,56637.0,0.539689]
[1725539911818,0.00613518,56638.0,56637.0,0.539689]
[1725539912041,0.000815,56638.0,56637.0,0.186563]
[1725539912306,0.000815,56638.0,56637.0,0.539689]
[1725539912534,0.00613518,56638.0,56637.0,0.539689]
[1725539912751,0.000815,56638.0,56637.0,0.539689]
[1725539912976,0.001815,56638.0,56637.0,0.563689]
[1725539913223,0.001815,56638.0,56637.0,0.916815]
[1725539914351,0.001815,56638.0,56637.0,0.563689]
[1725539914583,0.001815,56638.0,56637.0,0.0341]
[1725539914842,1.24304175,56638.0,56637.0,0.0241]
[1725539915064,1.237731,56638.0,56637.0,0.0241]
[1725539915285,1.26604486,56638.0,56637.0,0.0241]
[1725539915533,0.00712886,56638.0,56637.0,0.3268]
[1725539915791,0.00712886,56638.0,56637.0,1.036789]
[1725539915999,0.00712886,56638.0,56637.0,1.33913456]
[1725539916185,0.00712886,56638.0,56637.0,1.66826056]
[1725539916186,0.000815,56638.0,56637.0,1.66826056]
[1725539916432,0.000815,56638.0,56637.0,1.67326056]
[1725539916669,0.000815,56638.0,56637.0,1.020789]
[1725539916891,0.000815,56638.0,56637.0,1.365915]
[1725539917362,0.000815,56638.0,56637.0,1.733041]
[1725539917577,0.000815,56638.0,56637.0,1.379915]
[1725539918012,0.001815,56638.0,56637.0,1.040789]
[1725539918887,0.001815,56638.0,56637.0,1.026789]
[1725539919110,0.178374,56638.0,56637.0,0.5111]
[1725539919333,0.884612,56638.0,56637.0,0.0381]
[1725539919546,0.884612,56638.0,56637.0,0.0241]
[1725539919547,0.89766441,56638.0,56637.0,0.0241]
[1725539919773,0.89666441,56638.0,56637.0,0.0101]
[1725539920034,0.54354541,56638.0,56637.0,0.0241]
[1725539920294,0.56654541,56638.0,56637.0,0.0281]
[1725539920540,0.91966441,56638.0,56637.0,0.0281]
[1725539920795,1.27278341,56638.0,56637.0,0.0281]
[1725539921007,1.37278341,56638.0,56637.0,0.0281]
[1725539921440,1.37278341,56638.0,56637.0,0.0141]
[1725539922096,1.37278341,56638.0,56637.0,0.0001]
[1725539922097,1.66068341,56638.0,56637.0,0.0001]
[1725539922331,1.66068341,56638.0,56637.0,0.0141]
[1725539922790,1.66216574,56638.0,56637.0,0.0001]
[1725539923035,1.66216574,56638.0,56637.0,0.0141]
[1725539923243,1.66216574,56638.0,56637.0,0.0001]
[1725539923696,1.02414674,56638.0,56637.0,0.0011]
[1725539923929,0.29190874,56638.0,56637.0,0.0101]
[1725539924185,0.29490874,56638.0,56637.0,0.0111]
[1725539924420,1.35426574,56638.0,56637.0,0.0011]
[1725539924636,1.35126574,56638.0,56637.0,0.0001]
[1725539924867,1.00114674,56638.0,56637.0,0.0001]
[1725539925338,1.02414674,56638.0,56637.0,0.0001]
[1725539925568,1.00114674,56638.0,56637.0,0.0101]
[1725539925797,1.66156574,56638.0,56637.0,0.0001]
[1725539926205,2.01468474,56638.0,56637.0,0.0001]
[1725539926417,2.19438474,56638.0,56637.0,0.0001]
[1725539926623,2.19138474,56638.0,56637.0,0.0001]
[1725539926831,2.19138474,56638.0,56637.0,0.0041]
[1725539927032,2.19138474,56638.0,56637.0,0.0051]
[1725539927467,2.19138474,56638.0,56637.0,0.0041]
[1725539927717,2.19138474,56638.0,56637.0,0.0051]
[1725539929471,2.30201619,56638.0,56637.0,0.0051]
[1725539929695,1.83826574,56638.0,56637.0,0.0051]
[1725539929914,0.99814674,56638.0,56637.0,0.0151]
[1725539930330,0.99814674,56638.0,56637.0,0.1965]
[1725539930331,0.11534974,56638.0,56637.0,0.1965]
[1725539930553,0.01534974,56638.0,56637.0,0.373063]
[1725539930766,0.177374,56638.0,56637.0,0.1965]
[1725539930970,0.530493,56638.0,56637.0,0.1965]
[1725539931179,0.01267026,56638.0,56637.0,0.1965]
[1725539931451,0.18922926,56638.0,56637.0,0.1965]
[1725539931876,0.01267026,56638.0,56637.0,0.1965]
[1725539932325,0.18922926,56638.0,56637.0,0.1965]
[1725539932999,0.54234826,56638.0,56637.0,0.1965]
[1725539933223,1.24858626,56638.0,56637.0,0.0051]
[1725539933425,1.27158626,56638.0,56637.0,0.0051]
[1725539933644,0.18922926,56638.0,56637.0,0.0151]
[1725539934306,0.54234826,56638.0,56637.0,0.0151]
[1725539934749,0.01267026,56638.0,56637.0,0.0151]
[1725539935627,0.01267026,56638.0,56637.0,0.191663]
[1725539935837,0.01267026,56638.0,56637.0,0.0151]
[1725539936050,0.01267026,56638.0,56637.0,0.481463]
[1725539936551,0.01267026,56638.0,56637.0,0.654026]
[1725539936806,0.000815,56638.0,56637.0,1.377715]
[1725539937020,0.000815,56638.0,56637.0,1.376715]
[1725539937236,0.000815,56638.0,56637.0,1.379715]
[1725539937454,0.000815,56638.0,56637.0,1.732841]
[1725539937681,0.000815,56638.0,56637.0,1.376715]
[1725539937903,0.000815,56638.0,56637.0,1.379715]
[1725539938121,0.000815,56638.0,56637.0,1.383715]
[1725539938350,0.000815,56638.0,56637.0,1.380715]
[1725539938567,0.000815,56638.0,56637.0,1.733841]
[1725539938819,0.000815,56638.0,56637.0,1.90935196]
[1725539939070,0.000815,56638.0,56637.0,1.90535196]
[1725539939267,0.000815,56638.0,56637.0,1.91735196]
[1725539939491,0.000815,56638.0,56637.0,1.56422596]
[1725539939711,0.000815,56638.0,56637.0,1.398715]
[1725539940410,0.000815,56638.0,56637.0,1.751841]
[1725539940640,0.000815,56638.0,56637.0,1.92735196]
[1725539940892,0.45299,56659.0,56637.0,1.92735196]
[1725539940893,0.1,56659.0,56657.0,0.01]
[1725539941120,0.176497,56658.0,56657.0,0.01]
[1725539941328,0.1823,56657.0,56643.0,0.01]
[1725539941621,0.1823,56657.0,56637.0,0.0221]
[1725539941622,0.529678,56638.0,56637.0,0.0321]
[1725539942008,0.353091,56643.0,56639.0,0.01]
[1725539942009,0.176554,56640.0,56639.0,0.01]
[1725539942226,0.353025,56654.0,56637.0,0.0101]
[1725539942227,0.353071,56646.0,56643.0,0.01]
[1725539942432,0.353065,56647.0,56643.0,0.01]
[1725539942433,0.529623,56644.0,56643.0,0.01]
[1725539943096,0.30234556,56653.0,56649.0,0.01]
[1725539943319,0.176522,56650.0,56649.0,0.01]
[1725539943531,0.176518,56652.0,56649.0,0.01]
[1725539943742,0.176522,56650.0,56649.0,0.01]
[1725539944001,0.48464556,56657.0,56646.0,0.464334]
[1725539944002,0.35299,56659.0,56657.0,0.01]
[1725539944263,0.352988,56660.0,56657.0,0.01]
[1725539944702,0.53638844,56658.0,56657.0,0.01]
[1725539944916,0.5432535,56658.0,56657.0,0.01]
[1725539945154,0.0137615,56658.0,56657.0,0.2936]
[1725539945366,0.0137615,56658.0,56654.0,0.01]
[1725539945367,0.35989144,56658.0,56654.0,0.01]
[1725539945574,0.83186456,56655.0,56654.0,0.01]
[1725539945803,0.1953,56654.0,56649.0,0.01]
[1725539946035,0.57804556,56655.0,56649.0,0.01]
[1725539946036,0.176522,56650.0,56649.0,0.01]
[1725539946245,0.529548,56652.0,56651.0,0.01]
[1725539946718,0.529567,56650.0,56649.0,0.01]
[1725539946952,0.529567,56650.0,56642.0,0.01]
[1725539946953,0.176544,56643.0,56642.0,0.01]
[1725539947213,0.529641,56642.0,56641.0,0.01]
[1725539947392,0.882735,56642.0,56641.0,0.01]
[1725539947604,0.529641,56642.0,56641.0,0.01]
[1725539948077,0.882735,56642.0,56641.0,0.01]
[1725539948734,0.88783904,56642.0,56641.0,0.01]
[1725539948939,0.53474504,56642.0,56641.0,0.01]
[1725539949164,0.53474504,56642.0,56641.0,0.022]
[1725539949376,0.53474504,56642.0,56641.0,0.035]
[1725539949377,0.88783904,56642.0,56641.0,0.035]
[1725539949799,0.53474504,56642.0,56641.0,0.035]
[1725539950015,0.00510404,56642.0,56641.0,0.21155]
[1725539950238,0.00362611,56642.0,56641.0,0.21155]
[1725539950488,0.00362611,56642.0,56641.0,0.035]
[1725539950711,0.83198656,56642.0,56641.0,0.025]
[1725539950938,0.83198656,56642.0,56641.0,0.035]
[1725539950939,1.1901846,56642.0,56641.0,0.035]
[1725539951865,1.8480786,56642.0,56641.0,0.025]
[1725539952713,1.8480786,56642.0,56641.0,0.012]
[1725539952943,1.5662786,56642.0,56641.0,0.012]
[1725539953175,0.882797,56638.0,56637.0,0.0001]
[1725539953398,0.91095375,56638.0,56637.0,0.0001]
[1725539953843,0.00515675,56638.0,56637.0,0.539789]
[1725539954047,0.00515675,56638.0,56637.0,0.814989]
[1725539954257,0.176549,56642.0,56640.0,0.01]
[1725539954519,0.000815,56644.0,56643.0,0.01]
[1725539955371,0.000815,56644.0,56643.0,0.186544]
[1725539955575,0.000815,56644.0,56643.0,0.539632]
[1725539955784,0.000815,56644.0,56643.0,0.186544]
[1725539956404,0.000815,56644.0,56643.0,0.01]
[1725539956615,0.000815,56644.0,56643.0,0.186544]
[1725539956820,0.179356,56644.0,56643.0,0.01]
[1725539957024,0.529632,56643.0,56642.0,0.01]
[1725539957238,0.176544,56643.0,56642.0,0.01]
[1725539957443,0.002815,56644.0,56643.0,0.1902]
[1725539958094,0.000815,56644.0,56643.0,0.1902]
[1725539958322,0.000815,56644.0,56643.0,0.366744]
[1725539958553,0.000815,56644.0,56643.0,0.719832]
[1725539958777,0.000815,56644.0,56643.0,1.720508]
[1725539958980,0.000815,56644.0,56643.0,1.89764896]
[1725539959739,0.000815,56644.0,56643.0,2.25073696]
[1725539959944,0.000815,56644.0,56643.0,1.89764896]
[1725539960162,0.000815,56644.0,56643.0,1.90964896]
[1725539960378,0.000815,56644.0,56643.0,2.25073696]
[1725539960588,0.000815,56644.0,56643.0,1.89764896]
[1725539960793,0.000815,56644.0,56643.0,1.91064896]
[1725539961037,0.000815,56644.0,56643.0,2.25073696]
[1725539961260,0.000815,56644.0,56643.0,2.26473696]
[1725539961463,0.000815,56644.0,56643.0,2.27773696]
[1725539961887,0.000815,56644.0,56643.0,2.27973696]
[1725539962160,0.000815,56644.0,56643.0,2.26673696]
[1725539962388,0.000815,56656.0,56655.0,2.01839056]
[1725539962585,0.000815,56656.0,56655.0,2.19390152]
[1725539963019,0.000815,56656.0,56655.0,1.89155596]
[1725539963671,0.000815,56656.0,56655.0,1.90555596]
[1725539964531,0.000815,56656.0,56655.0,1.363032]
[1725539965017,0.000815,56656.0,56655.0,1.730045]
[1725539965440,0.000815,56656.0,56655.0,1.174932]
[1725539965858,0.000815,56656.0,56655.0,1.188932]
[1725539966074,0.000815,56656.0,56655.0,1.202932]
[1725539966257,0.000815,56656.0,56655.0,1.174932]
[1725539966677,0.000815,56656.0,56655.0,1.202932]
[1725539967851,0.17648,56664.0,56663.0,0.01]
[1725539967852,0.176478,56664.0,56663.0,0.01]
[1725539968059,0.176478,56664.0,56655.0,0.3104]
[1725539968060,0.176475,56666.0,56665.0,0.01]
[1725539968830,0.000815,56669.0,56668.0,0.01]
[1725539969147,0.530204,56669.0,56668.0,0.01]
[1725539971123,0.529398,56668.0,56667.0,0.01]
[1725539971336,0.529398,56668.0,56665.0,0.005]
[1725539971337,0.529408,56667.0,56666.0,0.01]
[1725539971544,0.882347,56667.0,56666.0,0.01]
[1725539971721,0.176469,56667.0,56666.0,0.01]
[1725539972144,0.000815,56669.0,56668.0,0.01]
[1725539972356,0.000815,56669.0,56668.0,0.012]
[1725539972788,0.177278,56669.0,56668.0,0.01]
[1725539973015,0.277278,56669.0,56668.0,0.01]
[1725539973225,0.176469,56667.0,56666.0,0.013]
[1725539973639,0.454741,56669.0,56666.0,0.013]
[1725539973640,0.27828,56669.0,56666.0,0.01]
[1725539974081,0.27828,56669.0,56668.0,0.001]
[1725539974276,0.27728,56669.0,56668.0,0.001]
[1725539974541,0.100815,56669.0,56668.0,0.001]
[1725539974741,0.000815,56669.0,56668.0,0.187466]
[1725539975528,0.000815,56669.0,56668.0,0.186466]
[1725539976131,0.000815,56669.0,56668.0,0.01]
[1725539976374,0.001815,56669.0,56668.0,0.186466]
[1725539976581,0.001815,56669.0,56668.0,0.187466]
[1725539976983,0.001815,56669.0,56668.0,0.540398]
[1725539978195,0.001815,56669.0,56668.0,0.011]
[1725539978602,0.01524156,56669.0,56668.0,0.187466]
[1725539980011,0.01524156,56669.0,56668.0,0.011]
[1725539980210,0.01524156,56669.0,56668.0,0.187466]
[1725539980466,0.01524156,56669.0,56668.0,0.187566]
[1725539981944,0.19170456,56669.0,56668.0,0.0111]
[1725539982188,0.43334761,56669.0,56668.0,0.0111]
[1725539982813,0.78627361,56669.0,56668.0,0.0111]
[1725539982991,0.43334761,56669.0,56668.0,0.011]
[1725539983411,0.78627361,56669.0,56668.0,0.011]
[1725539983621,0.78627361,56669.0,56668.0,0.001]
[1725539983622,1.64019961,56669.0,56668.0,0.001]
[1725539983844,1.74019961,56669.0,56668.0,0.001]
[1725539984061,2.09312561,56669.0,56668.0,0.001]
[1725539988116,1.61512561,56669.0,56668.0,0.001]
[1725539988328,1.26219961,56669.0,56668.0,0.001]
[1725539988765,0.90927361,56669.0,56668.0,0.001]
[1725539988981,0.90927361,56669.0,56668.0,0.011]
[1725539988982,0.01524156,56669.0,56668.0,0.011]
[1725539989658,0.78627361,56669.0,56668.0,0.001]
[1725539989864,1.13919961,56669.0,56668.0,0.001]
[1725539990341,1.16219961,56669.0,56668.0,0.001]
[1725539991231,1.51512561,56669.0,56668.0,0.001]
[1725539991459,1.88742561,56669.0,56668.0,0.001]
[1725539991673,1.61512561,56669.0,56668.0,0.001]
[1725539993558,1.26219961,56669.0,56668.0,0.001]
[1725539993762,0.90927361,56669.0,56668.0,0.001]
[1725539993964,0.11524156,56669.0,56668.0,0.011]
[1725539994151,0.29170456,56669.0,56668.0,0.011]
[1725539994357,0.11524156,56669.0,56668.0,0.011]
[1725539994585,0.01524156,56669.0,56668.0,0.1973]
[1725539995247,0.19170456,56669.0,56668.0,0.1973]
[1725539995467,1.13919961,56669.0,56668.0,0.001]
[1725539995685,1.16219961,56669.0,56668.0,0.001]
[1725539996104,1.51512561,56669.0,56668.0,0.001]
[1725539997390,1.69552561,56669.0,56668.0,0.001]
[1725540000399,0.56763056,56669.0,56668.0,0.001]
[1725540000613,0.56763056,56669.0,56668.0,0.3064]
[1725540000614,0.19170456,56669.0,56668.0,0.3064]
[1725540000829,0.01524156,56669.0,56668.0,0.3064]
[1725540001415,0.19170456,56669.0,56668.0,0.011]
[1725540001627,0.01524156,56669.0,56668.0,0.011]
[1725540001889,0.89755656,56669.0,56668.0,0.001]
[1725540002092,1.82360856,56669.0,56668.0,0.001]
[1725540002303,1.93417138,56669.0,56668.0,0.001]
[1725540002759,1.93417138,56669.0,56666.0,0.001628]
[1725540002760,1.710786,56667.0,56666.0,0.001628]
[1725540003076,2.53113917,56667.0,56666.0,0.001628]
[1725540003260,2.55413917,56667.0,56666.0,0.001628]
[1725540003964,0.882642,56648.0,56647.0,0.01]
[1725540004172,0.882642,56648.0,56646.0,0.52650515]
[1725540004173,0.529594,56647.0,56646.0,0.52650515]
[1725540004449,0.176534,56646.0,56645.0,0.01]
[1725540004634,0.529603,56646.0,56645.0,0.01]
[1725540005102,0.1952,56653.0,56643.0,0.00163]
[1725540005103,0.24164305,56655.0,56651.0,0.01]
[1725540005427,0.24164305,56658.0,56657.0,0.01]
[1725540005673,0.87113505,56658.0,56657.0,0.01]
[1725540005903,0.87113505,56658.0,56651.0,0.2885]
[1725540005904,0.176503,56656.0,56655.0,0.01]
[1725540006131,0.77115305,56656.0,56655.0,0.01]
[1725540006343,0.77115305,56656.0,56655.0,0.006]
[1725540006780,0.79415305,56656.0,56655.0,0.006]
[1725540006990,0.176516,56652.0,56651.0,0.2945]
[1725540007178,0.176516,56652.0,56650.0,0.006]
[1725540007179,0.176519,56651.0,56650.0,0.006]
[1725540007440,0.529557,56651.0,56650.0,0.006]
[1725540007665,0.53582874,56651.0,56650.0,0.006]
[1725540007877,0.353045,56650.0,56649.0,0.006]
[1725540008090,0.77121005,56650.0,56649.0,0.006]
[1725540008316,0.77121005,56650.0,56646.0,0.001628]
[1725540008317,0.176525,56649.0,56648.0,0.006]
[1725540008536,1.12427005,56649.0,56648.0,0.006]
[1725540008798,1.13314276,56649.0,56648.0,0.006]
[1725540009013,1.13314276,56649.0,56646.0,0.001628]
[1725540009014,1.53162,56647.0,56646.0,0.001628]
[1725540009450,1.56344984,56647.0,56646.0,0.001628]
[1725540009710,1.56344984,56647.0,56642.0,0.00163]
[1725540009711,0.882705,56644.0,56642.0,0.00163]
[1725540009924,2.06746002,56644.0,56642.0,0.00163]
[1725540010142,2.5556451,56644.0,56642.0,0.00163]
[1725540010382,2.31071672,56644.0,56642.0,0.00163]
[1725540010604,2.5061394,56644.0,56642.0,0.00163]
[1725540011111,2.5061394,56644.0,56628.0,0.52650515]
[1725540011112,1.342237,56629.0,56628.0,0.52650515]
[1725540011348,1.342237,56629.0,56623.0,0.00163]
[1725540011349,0.52981,56624.0,56623.0,0.00163]
[1725540011605,0.77145305,56624.0,56623.0,0.00163]
[1725540011838,1.15386303,56624.0,56623.0,0.00163]
[1725540012089,1.60707003,56624.0,56623.0,0.00163]
[1725540012811,1.60707003,56624.0,56623.0,0.31043]
[1725540012812,0.18280598,56624.0,56623.0,0.31043]
[1725540013038,0.18280598,56624.0,56623.0,0.50333]
[1725540013262,0.00620298,56624.0,56623.0,0.50733]
[1725540013479,0.176598,56626.0,56623.0,0.01663]
[1725540013690,0.176603,56624.0,56623.0,0.01663]
[1725540013924,0.199601,56625.0,56623.0,0.01663]
[1725540014156,0.199601,56625.0,56624.0,0.006]
[1725540014400,0.023,56625.0,56624.0,0.006]
[1725540014609,0.199597,56626.0,56624.0,0.006]
[1725540014823,0.1766,56625.0,56624.0,0.006]
[1725540015260,0.883,56625.0,56624.0,0.006]
[1725540015515,0.1766,56625.0,56624.0,0.006]
[1725540016407,0.353173,56630.0,56623.0,0.00163]
[1725540016408,0.176584,56631.0,56628.0,0.006]
[1725540016597,0.176587,56629.0,56628.0,0.006]
[1725540016867,0.883,56625.0,56624.0,0.003]
[1725540017096,0.95535196,56625.0,56624.0,0.003]
[1725540017336,0.95535196,56625.0,56623.0,0.00163]
[1725540017337,0.176603,56624.0,56623.0,0.00163]
[1725540017567,0.55281,56624.0,56623.0,0.00163]
[1725540018521,0.906017,56624.0,56623.0,0.00163]
[1725540018718,0.907017,56624.0,56623.0,0.00763]
[1725540019200,0.84175302,56624.0,56623.0,0.00763]
[1725540020108,0.48831987,56624.0,56623.0,0.01163]
[1725540020592,0.001,56624.0,56623.0,0.20083]
[1725540020803,0.001,56624.0,56623.0,0.377436]
[1725540021935,0.001,56624.0,56623.0,0.01163]
[1725540021936,0.53081,56624.0,56623.0,0.01163]
[1725540023073,0.884017,56624.0,56623.0,0.01163]
[1725540023509,0.5381677,56624.0,56623.0,0.01163]
[1725540024448,0.8913747,56624.0,56623.0,0.01163]
[1725540025319,1.2675817,56624.0,56623.0,0.01163]
[1725540025538,1.27485181,56624.0,56623.0,0.01163]
[1725540026023,1.56165181,56624.0,56623.0,0.01163]
[1725540026678,1.91485881,56624.0,56623.0,0.01163]
[1725540027592,1.56065181,56624.0,56623.0,0.00563]
[1725540027800,1.27385181,56624.0,56623.0,0.00563]
[1725540028029,1.63205881,56624.0,56623.0,0.00563]
[1725540028277,1.27885181,56624.0,56623.0,0.00563]
[1725540029133,1.27385181,56624.0,56623.0,0.00163]
[1725540029851,0.00923211,56624.0,56623.0,0.471236]
[1725540030081,0.00923211,56624.0,56623.0,2.19713792]
[1725540030082,0.01509217,56624.0,56623.0,2.19713792]
[1725540030332,0.176559,56638.0,56637.0,0.006]
[1725540030565,0.176566,56636.0,56635.0,0.2826]
[1725540030795,0.176563,56637.0,56635.0,0.2846]
[1725540031012,0.18387681,56636.0,56635.0,0.2846]
[1725540031218,0.00731081,56636.0,56635.0,0.48]
[1725540031644,0.17656,56638.0,56635.0,0.48]
[1725540031871,0.18387053,56636.0,56635.0,0.48]
[1725540032103,0.176569,56635.0,56634.0,0.002]
[1725540032321,0.529707,56635.0,56634.0,0.002]
[1725540032746,0.53888488,56635.0,56634.0,0.002]
[1725540033426,0.18574688,56635.0,56634.0,0.002]
[1725540033646,0.53888488,56635.0,56634.0,0.002]
[1725540033872,0.53888488,56635.0,56634.0,0.008]
[1725540034828,1.24516088,56635.0,56634.0,0.006]
[1725540035051,1.26816088,56635.0,56634.0,0.006]
[1725540035278,1.04044812,56635.0,56634.0,0.006]
[1725540035500,1.04044812,56635.0,56634.0,0.015]
[1725540035501,1.22393193,56635.0,56634.0,0.015]
[1725540035751,1.51583193,56635.0,56634.0,0.015]
[1725540036026,1.61583193,56635.0,56634.0,0.015]
[1725540036231,1.61583193,56635.0,56634.0,0.006]
[1725540036694,0.883,56625.0,56624.0,0.00163]
[1725540036913,1.20855196,56625.0,56624.0,0.00163]
[1725540037343,1.57316842,56625.0,56624.0,0.00163]
[1725540037585,1.21996842,56625.0,56624.0,0.00163]
[1725540038217,1.21996842,56625.0,56624.0,0.00263]
[1725540038637,1.21996842,56625.0,56624.0,0.00563]
[1725540039990,2.04016842,56625.0,56624.0,0.00563]
[1725540040211,2.07979521,56625.0,56624.0,0.00563]
[1725540040447,2.43299521,56625.0,56624.0,0.00563]
[1725540040680,2.07979521,56625.0,56624.0,0.00563]
[1725540041154,2.07979521,56625.0,56624.0,0.00463]
[1725540041371,2.07979521,56625.0,56596.0,0.52650515]
[1725540041372,1.059714,56619.0,56605.0,0.002]
[1725540041598,2.1969285,56619.0,56605.0,0.002]
[1725540041883,2.20376811,56619.0,56603.0,0.2006]
[1725540042114,2.48321703,56619.0,56603.0,0.2006]
[1725540042742,2.48321703,56619.0,56618.0,0.00363]
[1725540044487,2.78602345,56619.0,56618.0,0.00363]
[1725540044723,2.48321703,56619.0,56618.0,0.00363]
[1725540048754,0.10683961,56619.0,56618.0,0.00363]
[1725540049013,0.98993461,56619.0,56618.0,0.00363]
[1725540049699,0.63669661,56619.0,56618.0,0.00363]
[1725540049936,0.10683961,56619.0,56618.0,0.447452]
[1725540050167,0.00683961,56619.0,56618.0,0.27083]
[1725540050451,0.00683961,56619.0,56618.0,0.802696]
[1725540050683,0.276615,56621.0,56618.0,0.27283]
[1725540050920,0.176616,56620.0,56618.0,0.27283]
[1725540051383,0.18120518,56625.0,56620.0,0.002]
[1725540051638,0.18120518,56625.0,56618.0,0.27083]
[1725540051639,0.00460518,56625.0,56624.0,0.53181]
[1725540051871,0.00460518,56625.0,56624.0,1.149517]
[1725540052103,0.176579,56632.0,56627.0,0.176592]
[1725540052332,0.353152,56633.0,56627.0,0.176592]
[1725540052333,0.176583,56631.0,56627.0,0.176592]
[1725540052558,0.176583,56631.0,56625.0,0.353198]
[1725540052785,0.01140381,56630.0,56625.0,0.353198]
[1725540053018,0.01140381,56630.0,56627.0,0.176592]
[1725540053272,0.353135,56636.0,56631.0,0.2849]
[1725540053498,0.176578,56632.0,56631.0,0.2849]
[1725540053731,0.30280642,56634.0,56628.0,0.1924]
[1725540053732,0.176587,56629.0,56628.0,0.1924]
[1725540054184,0.18014077,56629.0,56628.0,0.1924]
[1725540054887,0.00459278,56629.0,56628.0,0.1924]
[1725540055140,0.00459278,56629.0,56628.0,0.1954]
[1725540055606,0.53435478,56629.0,56628.0,0.1954]
[1725540055848,0.00459278,56629.0,56628.0,0.1954]
[1725540056064,0.00459278,56629.0,56628.0,0.725173]
[1725540056296,0.00459278,56629.0,56628.0,0.371991]
[1725540056508,0.00103901,56629.0,56628.0,0.372991]
[1725540056785,0.00356244,56629.0,56628.0,0.372991]
[1725540056989,0.276574,56634.0,56629.0,0.176587]
[1725540057205,0.276574,56634.0,56631.0,0.002]
[1725540057440,0.276574,56634.0,56633.0,0.002]
[1725540057720,0.1,56634.0,56633.0,0.178575]
[1725540057925,0.40545591,56644.0,56636.0,0.178566]
[1725540057926,0.353087,56644.0,56636.0,0.178566]
[1725540058157,0.176556,56640.0,56636.0,0.178566]
[1725540058608,0.176554,56640.0,56636.0,0.178566]
[1725540058829,0.176558,56639.0,56636.0,0.1845]
[1725540059252,0.353915,56642.0,56636.0,0.1845]
[1725540059465,0.000815,56642.0,56636.0,1.07086095]
[1725540059911,0.177363,56642.0,56636.0,0.71772895]
[1725540060125,0.177363,56642.0,56636.0,0.72372895]
[1725540060339,0.000815,56642.0,56636.0,0.72372895]
[1725540060787,0.177363,56642.0,56636.0,0.714198]
[1725540061001,0.177378,56637.0,56636.0,0.1885]
[1725540061232,0.177378,56637.0,56636.0,0.1925]
[1725540061233,0.530504,56637.0,56636.0,0.1925]
[1725540061465,0.000815,56637.0,56636.0,0.1945]
[1725540061686,0.000815,56637.0,56636.0,0.1885]
[1725540062337,0.00769882,56637.0,56636.0,0.1885]
[1725540062622,0.000815,56637.0,56636.0,0.1885]
[1725540062854,0.00769882,56637.0,56636.0,1.07133]
[1725540063157,0.000815,56637.0,56636.0,1.33333]
[1725540063337,0.000815,56637.0,56636.0,2.52391138]
[1725540063785,0.000815,56637.0,56636.0,2.51591138]
[1725540064032,0.000815,56642.0,56641.0,2.01585942]
[1725540064256,0.000815,56642.0,56641.0,2.90957238]
[1725540064487,0.000815,56669.0,56663.0,0.352961]
[1725540064705,0.000815,56669.0,56666.0,0.2712]
[1725540064921,0.176469,56667.0,56666.0,0.2712]
[1725540065164,0.352939,56667.0,56663.0,0.002]
[1725540065375,0.352939,56667.0,56654.0,0.353017]
[1725540065376,0.05545722,56667.0,56662.0,0.002]
[1725540065616,0.176482,56663.0,56662.0,0.002]
[1725540065865,0.176479,56664.0,56662.0,0.002]
[1725540066099,0.352949,56666.0,56662.0,0.002]
[1725540066100,0.18679328,56663.0,56662.0,0.002]
[1725540066327,0.01031128,56663.0,56662.0,0.002]